[Event "21st Alekhine FIDE 2017"]
[Site "Voronezh"]
[Date "2017.06.18"]
[Round "7"]
[White "Peschansky, Mikhail"]
[Black "Lepaev, Andrey"]
[Result "1/2-1/2"]
[ECO "A15"]
[WhiteElo "2162"]
[BlackElo "2059"]
[Annotator "NA"]
[PlyCount "84"]
[EventDate "2017.??.??"]
[EventType "swiss"]
[EventCountry "RUS"]
[SourceTitle "playchess.com"]
[Source "ChessBase"]
[SourceQuality "1"]
[TimeControl "40/5400+30:1800+30"]

{[%evp 11,64,0,-1,2,0,0,29,9,0,-9,37,26,26,32,29,27,38,35,38,29,35,21,43,0,0,0,2,0,2,8,24,14,17,18,12,0,0,-27,-3,-18,32767,32767,32767,0,18,0,0,0,7,0,0,-32,-51,-40,0]} 1. c4 {[%emt 0:00:00]} Nf6 {[%emt 0:00:06]} 2. Nf3 {[%emt 0:00:00]} c6 {[%emt 0:00:40]} 3. d4 {[%emt 0:02:31]} d5 {[%emt 0:00:09]} 4. Qc2 {[%emt 0:02:13]} g6 {[%emt 0:00:33]} 5. Nc3 {[%emt 0:00:33]} Bg7 {[%emt 0:02:12] D11: Slav Defence: 3 Nf3 sidelines and 3...Nf6 4 e3 Bg4} 6. cxd5 {[%emt 0:08:40]} cxd5 {[%emt 0:03:57]} 7. Bf4 {[%emt 0:00:47] LiveBook: 21 Games} O-O {[%emt 0:01:52]} (7... Nc6 8. e3 O-O 9. Be2 Ne4 10. O-O Bf5 11. Nxe4 dxe4 12. Nh4 Be6 13. Qxe4 Bd5 14. Qd3 {0-1 (42) Donchenko,A (2568)-Motylev,A (2649) Germany 2015}) 8. e3 {[%emt 0:03:21]} a6 {[%emt 0:02:03]} 9. Bd3 {[%emt 0:02:52]} Nc6 {[%emt 0:00:19]} 10. a3 {[%emt 0:00:18]} Qa5 $146 {[%emt 0:14:54]} ({Predecessor:} 10... Bg4 11. Ne5 Nxe5 12. Bxe5 Rc8 13. Qb3 b5 14. h3 {1-0 (34) Pollmueller,M (2076)-Maniocha,M (1982) Dortmund 2016}) 11. O-O {[%emt 0:01:58]} Nh5 {[%emt 0:00:16]} 12. Bg5 {[%emt 0:01:20]} h6 {[%emt 0:00:27]} 13. Bh4 {[%emt 0:08:39]} g5 {[%emt 0:01:06]} 14. Bg3 {[%emt 0:00:49]} Nxg3 {[%emt 0:00:05]} 15. hxg3 {[%emt 0:00:10]} Qd8 {[%emt 0:07:49]} 16. Rfd1 {[%emt 0:04:23]} Bg4 {[%emt 0:01:54]} 17. Bf5 {[%emt 0:02:40]} Bxf5 {[%emt 0:01:18]} 18. Qxf5 {[%emt 0:00:05]} e6 {[%emt 0:00:04]} 19. Qg4 {[%emt 0:01:00]} f5 {[%emt 0:09:14]} 20. Qh5 {[%emt 0:00:10]} Qe8 {[%emt 0:00:05]} 21. Qxe8 {[%emt 0:03:56]} Rfxe8 {[%emt 0:03:07]} 22. Na4 {[%emt 0:01:53]} Na5 {[%emt 0:06:51]} 23. Nb6 {[%emt 0:15:44]} Rad8 {[%emt 0:02:46]} 24. Nd2 {[%emt 0:05:50]} Rd6 {[%emt 0:06:35]} 25. Na4 {[%emt 0:00:19]} Rc6 {[%emt 0:02:11]} 26. b4 {[%emt 0:03:12]} Nc4 {[%emt 0:01:16]} 27. Nc5 {[%emt 0:00:54]} b5 {[%emt 0:03:26]} 28. Nxc4 {[%emt 0:02:55]} bxc4 {[%emt 0:07:44]} 29. f4 {[%emt 0:01:37]} Rb8 {[%emt 0:07:27]} 30. Rdb1 {[%emt 0:00:18]} Bf8 {[%emt 0:00:42]} 31. Na4 {[%emt 0:02:20]} Kf7 {[%emt 0:01:39]} 32. Kf2 {[%emt 0:00:13]} Bd6 $11 {[%emt 0:01:04]} 33. Ke2 {[%emt 0:06:57]} Kg7 {[%emt 0:00:57]} 34. Kf2 {[%emt 0:00:02]} Kf7 {[%emt 0:00:07]} 35. Ke2 {[%emt 0:00:04]} Kg7 {[%emt 0:00:04]} 36. Kf2 {[%emt 0:00:07]} Kf7 {[%emt 0:00:05]} 37. Ke2 {[%emt 0:00:04]} Kg7 {[%emt 0:00:04]} 38. Kf2 {[%emt 0:00:03]} Kf7 {[%emt 0:00:06]} 39. Ke2 {[%emt 0:00:04]} Kg7 {[%emt 0:00:05]} 40. Kf2 {[%emt 0:00:02]} Kf7 {[%emt 0:30:06]} 41. Ke2 {[%emt 0:30:04]} Ra8 42. Rb2 Rg8 1/2-1/2

[Event "21st Alekhine FIDE 2017"]
[Site "Voronezh"]
[Date "2017.06.18"]
[Round "7"]
[White "Ioffe, Evgeny"]
[Black "Kasantsev, Anatolij B"]
[Result "1-0"]
[ECO "B40"]
[WhiteElo "2155"]
[BlackElo "1961"]
[Annotator "ChessBase"]
[PlyCount "65"]
[EventDate "2017.??.??"]
[EventType "swiss"]
[EventCountry "RUS"]
[SourceTitle "playchess.com"]
[Source "ChessBase"]
[SourceQuality "1"]
[TimeControl "40/5400+30:1800+30"]

1. e4 {[%emt 0:00:00]} c5 {[%emt 0:01:59]} 2. Nf3 {[%emt 0:00:00]} e6 {[%emt 0:00:13]} 3. c3 {[%emt 0:00:28]} Nf6 {[%emt 0:00:26]} 4. e5 {[%emt 0:00:08]} Nd5 {[%emt 0:00:01]} 5. d4 {[%emt 0:00:19]} cxd4 {[%emt 0:00:55]} 6. cxd4 {[%emt 0:00:13]} d6 {[%emt 0:00:00]} 7. a3 {[%emt 0:01:51]} Bd7 {[%emt 0:00:00]} 8. Bd3 {[%emt 0:00:17]} Bc6 {[%emt 0:00:50]} 9. O-O {[%emt 0:00:26]} Be7 {[%emt 0:00:09]} 10. Qe2 {[%emt 0:02:33]} a6 {[%emt 0:00:14]} 11. Nc3 {[%emt 0:02:51]} Nd7 {[%emt 0:03:53]} 12. exd6 {[%emt 0:10:29]} Bxd6 {[%emt 0:00:52]} 13. Re1 {[%emt 0:05:39]} h6 {[%emt 0:08:24]} 14. Ne4 {[%emt 0:07:02]} Be7 {[%emt 0:00:40]} 15. Ne5 {[%emt 0:03:59]} Nxe5 {[%emt 0:00:22]} 16. dxe5 {[%emt 0:00:09]} Qc7 {[%emt 0:04:04]} 17. Ng3 {[%emt 0:12:01]} g6 {[%emt 0:07:02]} 18. Bd2 {[%emt 0:03:36]} h5 {[%emt 0:01:36]} 19. Nf1 {[%emt 0:03:49]} h4 {[%emt 0:06:26]} 20. h3 {[%emt 0:00:34]} Rh5 {[%emt 0:00:47]} 21. Nh2 {[%emt 0:00:47]} Qb6 {[%emt 0:12:28]} 22. b4 {[%emt 0:02:39]} Rd8 {[%emt 0:03:57]} 23. Nf3 {[%emt 0:05:59]} g5 {[%emt 0:07:08]} 24. Be4 {[%emt 0:05:40]} Rh8 {[%emt 0:02:09]} 25. Nxg5 {[%emt 0:02:56]} Rg8 {[%emt 0:00:32]} 26. Qh5 {[%emt 0:00:22]} Kd7 {[%emt 0:00:45]} 27. Qxf7 {[%emt 0:07:27]} Rxg5 {[%emt 0:00:43]} 28. Bxd5 {[%emt 0:02:28]} Rxg2+ {[%emt 0:02:29]} 29. Bxg2 {[%emt 0:00:52]} Bxg2 {[%emt 0:00:04]} 30. Be3 {[%emt 0:02:27]} Qc7 {[%emt 0:00:56]} 31. Kxg2 {[%emt 0:01:06]} Rf8 {[%emt 0:00:25]} 32. Red1+ {[%emt 0:00:32]} Kc8 33. Qf6 1-0

[Event "21st Alekhine FIDE 2017"]
[Site "Voronezh"]
[Date "2017.06.18"]
[Round "7"]
[White "Palkovich, Denis"]
[Black "Provkin, Vladimir"]
[Result "0-1"]
[ECO "A45"]
[WhiteElo "2147"]
[BlackElo "2163"]
[Annotator "NA"]
[PlyCount "64"]
[EventDate "2017.??.??"]
[EventType "swiss"]
[EventCountry "RUS"]
[SourceTitle "playchess.com"]
[Source "ChessBase"]
[SourceQuality "1"]
[TimeControl "40/5400+30:1800+30"]

{[%evp 8,64,23,32767,9,2,12,-3,25,12,32,38,42,44,38,39,54,35,43,39,40,43,70,-18,-10,-35,-9,-62,-80,-74,-60,-81,-75,-63,-40,-205,-89,-85,-77,-72,-50,-453,-495,-481,-498,-518,-454,-664,-634,32767,-661,32767,32767,-720,-751,-1004,-565,-967,-1017]} 1. d4 {[%emt 0:03:45]} Nf6 {[%emt 0:07:02]} 2. Bf4 {[%emt 0:01:09]} g6 {[%emt 0:00:23]} 3. e3 {[%emt 0:00:21]} d6 {[%emt 0:00:18]} 4. Nf3 {[%emt 0:00:21]} Bg7 {[%emt 0:00:27]} 5. h3 {[%emt 0:00:44]} O-O {[%emt 0:00:44] LiveBook: 1214 Games} 6. Be2 {[%emt 0:00:13]} Nc6 {[%emt 0:00:38]} 7. O-O {[%emt 0:00:31]} Nd7 {[%emt 0:00:11]} (7... e5 $5 8. dxe5 Ne4 $11) 8. c4 {[%emt 0:00:48] A48: 1 d4 Nf6 2 Nf3 g6: Torre, London and Colle Systems} (8. Bh2 e5 9. Nc3 exd4 10. Nxd4 Nxd4 11. exd4 Re8 12. Qd2 Nf8 13. Bc4 Be6 14. Bxe6 Nxe6 15. Ne2 Qg5 16. Qd3 Qd5 {½-½ (68) Nakamura,H (2767)-Aronian,L (2797) Saint Louis 2014}) 8... e5 {[%emt 0:00:23]} 9. Bg3 {[%emt 0:06:20]} e4 {[%emt 0:03:19]} 10. Nfd2 {[%emt 0:00:33]} f5 {[%emt 0:00:44]} 11. Nc3 {[%emt 0:00:17]} Kh8 $146 {[%emt 0:01:11]} ({Predecessor:} 11... Nf6 12. f4 Ne7 13. Bh4 c6 14. Rb1 d5 15. c5 Ne8 16. b4 a6 17. a4 Nc7 18. b5 {½-½ (18) Zinchenko,Y (2539)-Zubarev,A (2548) Poltava 2009}) 12. Rc1 {[%emt 0:01:57]} g5 {[%emt 0:03:06]} 13. Bh2 {[%emt 0:01:30]} Nf6 {[%emt 0:00:48]} 14. a3 {[%emt 0:05:27]} Qe7 {[%emt 0:01:21]} 15. c5 {[%emt 0:01:18]} (15. b4 $14) 15... dxc5 {[%emt 0:01:29]} 16. dxc5 {[%emt 0:01:56]} Be6 {[%emt 0:01:03]} 17. Nb5 {[%emt 0:03:10] [#]} f4 $1 {[%emt 0:12:12]} 18. exf4 {[%emt 0:03:39]} gxf4 {[%emt 0:01:15]} 19. Bxf4 {[%emt 0:00:42]} Nd5 {[%emt 0:00:52]} 20. Bg3 {[%emt 0:02:31]} Rad8 {[%emt 0:03:34]} 21. Nxe4 $2 {[%emt 0:12:05] [#]} (21. Qe1 $1 $11) 21... a6 {[%emt 0:05:37]} (21... Nf4 $1 $19 {has better winning chances.} 22. Qe1 Bxh3) 22. Nxc7 {[%emt 0:03:55]} (22. Nbd6 $11 {remains equal.}) 22... Nxc7 {[%emt 0:00:13]} 23. Bd6 {[%emt 0:00:50]} Qh4 {[%emt 0:04:17]} 24. Qa4 $2 {[%emt 0:01:35]} (24. Bg4 $17 {is tougher.}) 24... Nd4 {[%emt 0:01:11]} 25. Bd3 {[%emt 0:09:32]} Nd5 {[%emt 0:01:19]} 26. Bg3 {[%emt 0:03:48]} Qh5 {[%emt 0:03:28]} 27. f4 {[%emt 0:06:11]} (27. Qd1 $142 Qh6 28. Nd6) 27... Bf5 {[%emt 0:05:32]} 28. Rce1 {[%emt 0:03:38]} Qg6 {[%emt 0:01:14]} 29. Kh2 {[%emt 0:00:58]} Nf6 {[%emt 0:00:19]} 30. Nxf6 {[%emt 0:03:06]} Bxd3 {[%emt 0:00:35]} 31. Nd7 {[%emt 0:00:18]} Rf7 {[%emt 0:02:02]} 32. Bh4 $19 {[%emt 0:07:35]} (32. f5 $142 Nxf5 33. Rxf5 Qxf5 34. Ne5) 32... Bxf1 {[%emt 0:00:24]} 0-1

[Event "21st Alekhine FIDE 2017"]
[Site "Voronezh"]
[Date "2017.06.18"]
[Round "7"]
[White "Khajrutdinov, Ildar"]
[Black "Katkov, Vitaly"]
[Result "1-0"]
[ECO "D35"]
[WhiteElo "2087"]
[BlackElo "2054"]
[Annotator "NA"]
[PlyCount "119"]
[EventDate "2017.??.??"]
[EventType "swiss"]
[EventCountry "RUS"]
[SourceTitle "playchess.com"]
[Source "ChessBase"]
[SourceQuality "1"]
[TimeControl "40/5400+30:1800+30"]

{[%evp 10,119,26,12,32767,32767,100,101,101,117,104,102,106,95,74,89,126,116,164,137,141,136,153,151,156,149,178,163,237,234,252,255,237,238,239,237,222,32767,240,243,241,254,240,246,235,32767,217,211,246,32767,275,271,277,271,285,308,374,210,32767,32767,32767,32767,32767,32767,32767,32767,32767,32767,32767,32767,32767,32767,32767,32767,32767,342,32767,32767,32767,32767,32767,112,32767,78,174,32767,32767,32767,32767,550,427,32767,828,12777,32767,32767,32767,1145,32767,32767,32767,32767,32767,32767,32767,32767,32767,32767,32767,32767,1903,12843]} 1. d4 {[%emt 0:00:00]} Nf6 {[%emt 0:02:31]} 2. c4 {[%emt 0:00:00]} e6 {[%emt 0:00:37]} 3. Nc3 {[%emt 0:02:02]} d5 {[%emt 0:01:13]} 4. cxd5 {[%emt 0:01:20]} exd5 {[%emt 0:00:06]} 5. Bg5 {[%emt 0:00:14]} Be7 {[%emt 0:03:48]} 6. e3 {[%emt 0:00:35]} O-O {[%emt 0:01:53]} 7. Bd3 {[%emt 0:00:07]} b6 {[%emt 0:00:54]} (7... h6 $11 8. Bxf6 Bxf6) 8. Bxf6 $1 {[%emt 0:05:11]} Bxf6 {[%emt 0:04:31]} 9. Qh5 {[%emt 0:00:51]} g6 {[%emt 0:01:02]} 10. Qxd5 {[%emt 0:00:16] LiveBook: 10 Games} c6 {[%emt 0:00:35]} 11. Qxd8 {[%emt 0:02:39]} Rxd8 {[%emt 0:00:09]} 12. Nge2 {[%emt 0:03:13] D35: Queen's Gambit Declined: Exchange Variation} Ba6 {[%emt 0:03:35]} 13. Be4 {[%emt 0:06:42]} Bxe2 $146 {[%emt 0:08:24]} ({Predecessor:} 13... Bb7 14. O-O Na6 15. Rac1 Rd7 16. Rfd1 Rad8 17. a3 Nc7 18. Bf3 Bg7 19. g3 Ne6 {1-0 (35) Vigoa Apecheche,Y (2257)-Guerrero Rodriguez,A (2143) Merida 2008}) 14. Nxe2 {[%emt 0:13:51]} a5 {[%emt 0:02:40]} 15. Rc1 {[%emt 0:01:46]} Rd6 {[%emt 0:01:39]} 16. O-O {[%emt 0:02:30]} Ra7 {[%emt 0:06:45]} 17. Bf3 {[%emt 0:07:32]} Kg7 {[%emt 0:03:10]} 18. Nc3 {[%emt 0:04:27]} Be7 {[%emt 0:02:33]} (18... Rd8 $142 19. b3 Be7) 19. d5 {[%emt 0:07:48]} Na6 {[%emt 0:09:49]} 20. dxc6 {[%emt 0:03:18]} Nc7 {[%emt 0:02:41]} 21. Rfd1 {[%emt 0:02:59]} Ra8 {[%emt 0:00:42]} 22. Rxd6 {[%emt 0:13:34]} Bxd6 {[%emt 0:00:17]} 23. Na4 {[%emt 0:05:51]} Rb8 {[%emt 0:02:33]} 24. Rd1 {[%emt 0:00:49]} Ne8 {[%emt 0:00:09]} 25. Nc3 {[%emt 0:00:26]} Kf8 {[%emt 0:06:13]} 26. Nb5 {[%emt 0:01:00]} Ke7 {[%emt 0:01:51]} 27. Kf1 {[%emt 0:03:40]} Rd8 {[%emt 0:02:06]} 28. Nxd6 {[%emt 0:00:18]} Nxd6 {[%emt 0:01:00]} 29. Ke2 {[%emt 0:04:45]} f5 {[%emt 0:01:02]} 30. h4 {[%emt 0:00:29]} Rc8 {[%emt 0:02:23]} 31. Rd4 {[%emt 0:00:20]} Rc7 {[%emt 0:00:32]} 32. a4 {[%emt 0:01:21]} Nf7 {[%emt 0:01:53]} (32... Nc8 $142 33. b4 axb4 34. Rxb4 Kd6 35. Rd4+ Ke6) 33. g3 {[%emt 0:02:37]} (33. b4 $142) 33... Ne5 {[%emt 0:03:00]} 34. Bg2 {[%emt 0:00:19]} Rc8 {[%emt 0:00:25]} 35. Rd2 {[%emt 0:03:21]} Nxc6 {[%emt 0:00:17]} 36. Bxc6 {[%emt 0:00:59]} Rxc6 {[%emt 0:00:06]} 37. Kd1 {[%emt 0:00:27]} Ke6 {[%emt 0:01:05]} 38. Rd4 {[%emt 0:00:18]} Rc5 {[%emt 0:01:15]} 39. Kd2 {[%emt 0:00:26]} h6 {[%emt 0:01:38]} 40. Rd8 {[%emt 0:00:31]} Rc4 {[%emt 0:32:07]} 41. b3 {[%emt 0:30:17]} Rb4 {[%emt 0:01:26]} 42. Kc3 {[%emt 0:00:26]} b5 {[%emt 0:00:23]} 43. axb5 {[%emt 0:01:07]} Rxb5 {[%emt 0:00:08]} 44. h5 {[%emt 0:00:22]} gxh5 {[%emt 0:04:19]} 45. Rh8 {[%emt 0:00:15]} Rc5+ {[%emt 0:00:13]} 46. Kd3 {[%emt 0:00:23]} Rd5+ {[%emt 0:00:12]} (46... Kf6 $16 47. Rxh6+ Kg5) 47. Ke2 {[%emt 0:00:57]} Rb5 {[%emt 0:00:21]} 48. Rxh6+ {[%emt 0:00:02]} Kf7 {[%emt 0:01:36]} 49. Rxh5 {[%emt 0:00:15]} Kg6 {[%emt 0:00:11]} 50. g4 {[%emt 0:00:28]} Rxb3 {[%emt 0:00:14]} 51. Rxf5 {[%emt 0:00:10]} a4 {[%emt 0:00:14]} 52. Ra5 {[%emt 0:00:08]} a3 {[%emt 0:00:06]} 53. f4 {[%emt 0:00:25]} Rb2+ {[%emt 0:00:26]} 54. Kf3 {[%emt 0:00:05]} a2 {[%emt 0:00:06]} 55. Ra6+ {[%emt 0:00:03]} Kf7 {[%emt 0:00:17]} 56. f5 {[%emt 0:00:14]} Rc2 {[%emt 0:00:28]} 57. g5 {[%emt 0:00:14]} Rb2 {[%emt 0:00:44]} 58. Ra7+ {[%emt 0:00:07]} Kf8 {[%emt 0:00:04]} 59. f6 {[%emt 0:00:18]} Rb5 {[%emt 0:00:28]} 60. Ke4 $18 1-0

[Event "21st Alekhine FIDE 2017"]
[Site "Voronezh"]
[Date "2017.06.18"]
[Round "7"]
[White "Kazmin, Semen"]
[Black "Lebedev, Mikhail S"]
[Result "0-1"]
[ECO "B33"]
[WhiteElo "2086"]
[BlackElo "2041"]
[Annotator "NA"]
[PlyCount "72"]
[EventDate "2017.??.??"]
[EventType "swiss"]
[EventCountry "RUS"]
[SourceTitle "playchess.com"]
[Source "ChessBase"]
[SourceQuality "1"]
[TimeControl "40/5400+30:1800+30"]

{[%evp 8,61,29,14,36,2,12,31,33,44,35,20,32767,32767,32767,32767,32767,32767,32767,15,39,33,32767,18,14,9,4,0,0,0,2,14,29,23,36,22,35,6,98,60,60,36,38,45,46,31,57,32767,87,73,79,82,72,73,72,55]} 1. e4 {[%emt 0:00:00]} c5 {[%emt 0:00:33]} 2. Nf3 {[%emt 0:00:00]} Nc6 {[%emt 0:00:27]} 3. d4 {[%emt 0:00:00]} cxd4 {[%emt 0:00:15]} 4. Nxd4 {[%emt 0:00:00]} Nf6 {[%emt 0:00:24]} 5. Nc3 {[%emt 0:00:06]} e5 {[%emt 0:00:20]} 6. Ndb5 {[%emt 0:00:09]} d6 {[%emt 0:00:10]} 7. Bg5 {[%emt 0:00:06]} a6 {[%emt 0:00:09]} 8. Na3 {[%emt 0:00:07]} b5 {[%emt 0:00:10]} 9. Nd5 {[%emt 0:00:08]} (9. Bxf6 $5 gxf6 10. Nd5 $11) 9... Be7 {[%emt 0:00:10]} 10. Bxf6 {[%emt 0:00:08]} Bxf6 {[%emt 0:00:06]} 11. c3 {[%emt 0:00:09]} O-O {[%emt 0:01:28]} 12. h4 {[%emt 0:00:25]} Rb8 {[%emt 0:02:01]} 13. Nc2 {[%emt 0:01:23]} Be7 {[%emt 0:01:32]} 14. Nce3 {[%emt 0:00:34] B33: Sicilian: Pelikan and Sveshnikov Variations} (14. g3 Be6 15. Bh3 Qd7 16. Bxe6 fxe6 17. Nxe7+ Qxe7 18. Ne3 Rbd8 19. a4 d5 20. axb5 axb5 21. Qb3 d4 {1-0 (29) Blomqvist,E (2546)-Pacher,M (2450) Minsk 2017}) 14... Be6 {[%emt 0:03:47]} 15. Qf3 {[%emt 0:01:34]} Qd7 {[%emt 0:04:01]} 16. Rd1 {[%emt 0:00:24] LiveBook: 65 Games} Bd8 {[%emt 0:11:13]} 17. h5 {[%emt 0:11:11]} h6 {[%emt 0:07:50]} 18. Nf5 {[%emt 0:09:40]} Kh8 $146 {[%emt 0:08:45]} ({Predecessor:} 18... Bg5 19. Bd3 Na5 20. b3 Bxd5 21. exd5 g6 {½-½ (42) Ivanov-Kiselev,V ICCF email 2009}) 19. Nde3 {[%emt 0:05:10]} Bc7 {[%emt 0:08:36]} 20. Rh3 {[%emt 0:17:11]} Ne7 {[%emt 0:08:06]} 21. Rg3 {[%emt 0:05:17]} Rg8 {[%emt 0:07:06]} 22. Bd3 {[%emt 0:18:10]} Kh7 {[%emt 0:15:06]} ({Don't play} 22... Bxa2 $6 {[#]} 23. Nxg7 $1 {[%mdl 512]} Bd8 24. Ngf5 $16) (22... Bb6 $11) 23. Bc2 {[%emt 0:04:53]} a5 {[%emt 0:00:59]} 24. Nd5 {[%emt 0:05:19]} (24. Ng4 $16) 24... Bxf5 $1 {[%emt 0:02:45]} 25. exf5 {[%emt 0:01:15]} f6 {[%emt 0:00:20]} 26. Nxe7 {[%emt 0:00:35]} Qxe7 {[%emt 0:00:02]} 27. Be4 {[%emt 0:00:32]} d5 {[%emt 0:02:20]} (27... b4 $11 {keeps the balance.}) 28. Rxd5 {[%emt 0:00:56]} Rgd8 {[%emt 0:00:43]} 29. Qe2 {[%emt 0:03:28]} Rxd5 {[%emt 0:00:41]} 30. Bxd5 {[%emt 0:00:01]} Bb6 {[%emt 0:00:45]} 31. Be4 $14 {[%emt 0:01:30]} b4 {[%emt 0:01:03]} 32. c4 {[%emt 0:02:13]} Bd4 {[%emt 0:00:46]} 33. Bd5 {[%emt 0:01:18]} a4 {[%emt 0:01:15]} 34. Qc2 {[%emt 0:05:55]} b3 {[%emt 0:03:29]} 35. axb3 {[%emt 0:00:34]} Qb4+ {[%emt 0:00:06]} 36. Qd2 {[%emt 0:02:01]} Bxf2+ {[%emt 0:00:11] Qc2 Bd4+} 0-1

[Event "21st Alekhine FIDE 2017"]
[Site "Voronezh"]
[Date "2017.06.18"]
[Round "7"]
[White "Geranichev, Mikhail"]
[Black "Rozmetov, Aybek"]
[Result "1-0"]
[ECO "A04"]
[WhiteElo "2076"]
[BlackElo "1978"]
[Annotator "NA RC"]
[PlyCount "73"]
[EventDate "2017.??.??"]
[EventType "swiss"]
[EventCountry "RUS"]
[SourceTitle "playchess.com"]
[Source "ChessBase"]
[SourceQuality "1"]
[TimeControl "40/5400+30:1800+30"]

{[%evp 17,73,-3,28,22,22,0,32767,32767,28,10,11,6,12,10,1,0,0,7,0,-11,21,-2,-6,0,0,-5,0,26,16,-3,14,0,0,0,0,0,58,54,60,61,56,16,27,14,15,0,0,0,0,8,0,0,0,0,0,0,0,0]} 1. Nf3 {[%emt 0:00:16]} b6 {[%emt 0:01:11]} 2. g3 {[%emt 0:00:18]} Bb7 {[%emt 0:00:05]} 3. Bg2 {[%emt 0:00:06]} Nf6 {[%emt 0:00:20]} 4. d3 {[%emt 0:00:07]} e6 {[%emt 0:02:23]} 5. e4 {[%emt 0:01:26]} d6 {[%emt 0:00:35]} 6. O-O {[%emt 0:00:24]} Be7 {[%emt 0:00:01]} 7. Nbd2 {[%emt 0:00:26]} O-O {[%emt 0:00:16]} 8. Re1 {[%emt 0:00:16]} c5 {[%emt 0:00:23]} 9. Nf1 {[%emt 0:01:19] A05: Réti Opening: 1 Nf3 Nf6} (9. c3 Nc6 10. a3 b5 11. d4 cxd4 12. cxd4 a5 13. b3 d5 14. e5 Nd7 15. Nf1 a4 16. b4 Nb6 17. h4 Nc4 {1-0 (47) Anton Guijarro,D (2631)-Morozevich,A (2731) Dubai 2014}) 9... Nbd7 {[%emt 0:00:37]} 10. Ne3 {[%emt 0:00:38]} Rc8 $146 {[%emt 0:00:57]} ({Predecessor:} 10... Qc7 11. h4 d5 12. e5 Ne8 13. Ng4 h5 14. Ngh2 d4 15. Bf4 {1-0 (29) Stoljarov,S-Szulc,M (2210) Tallinn 1997}) 11. b3 {[%emt 0:00:56]} Qc7 {[%emt 0:01:10]} 12. Bb2 {[%emt 0:00:27]} Rfd8 {[%emt 0:00:40]} 13. c4 {[%emt 0:00:41]} Ne5 {[%emt 0:03:27]} 14. Qc2 {[%emt 0:01:28]} Nc6 {[%emt 0:03:30]} 15. Rad1 {[%emt 0:03:37]} a6 {[%emt 0:00:48]} 16. Qe2 {[%emt 0:00:34]} b5 {[%emt 0:03:48]} 17. h4 {[%emt 0:02:03]} b4 {[%emt 0:06:55]} 18. Bh3 {[%emt 0:04:26]} h6 {[%emt 0:01:12]} 19. Ng4 {[%emt 0:01:33]} (19. Nd5 $5 exd5 20. exd5 $11 (20. Bxc8 dxe4 21. Bxb7 exf3 $11)) 19... Nxg4 {[%emt 0:02:31]} 20. Bxg4 {[%emt 0:00:18]} Ra8 {[%emt 0:03:03]} 21. d4 {[%emt 0:02:23]} e5 {[%emt 0:03:15]} 22. d5 $1 {[%emt 0:01:44]} Nd4 {[%emt 0:00:44]} 23. Nxd4 {[%emt 0:00:07]} exd4 {[%emt 0:04:09]} 24. f4 {[%emt 0:01:28]} Re8 {[%emt 0:14:51]} 25. Qd3 {[%emt 0:09:30]} Bf6 {[%emt 0:00:55]} 26. Rd2 {[%emt 0:00:22]} Re7 {[%emt 0:00:49]} (26... Bc8 $11 27. Bf3 Bd7) 27. Bd1 {[%emt 0:00:32]} Rae8 {[%emt 0:00:33]} 28. Bc2 {[%emt 0:00:18]} g6 {[%emt 0:01:42]} 29. h5 {[%emt 0:00:27]} Bc8 $1 {[%emt 0:00:37]} 30. hxg6 {[%emt 0:02:26]} fxg6 {[%emt 0:00:46]} 31. Rh2 {[%emt 0:01:44]} h5 {[%emt 0:00:36]} 32. e5 {[%emt 0:05:26]} Bf5 {[%emt 0:01:01]} 33. Qd1 {[%emt 0:00:23]} Bg4 {[%emt 0:10:26]} 34. Qd3 {[%emt 0:01:48]} Bf5 {[%emt 0:00:49]} 35. Qd1 {[%emt 0:02:05]} Bg4 {[%emt 0:00:47]} 36. Qd3 {[%emt 0:01:49]} Bf5 {[%emt 0:01:06]} 37. Qd1 $11 {[%emt 0:00:10]} 1-0

[Event "21st Alekhine FIDE 2017"]
[Site "Voronezh"]
[Date "2017.06.18"]
[Round "7"]
[White "Chekletsov, Egor"]
[Black "Manukovsky, Vladimir"]
[Result "0-1"]
[ECO "B50"]
[WhiteElo "2070"]
[BlackElo "2200"]
[Annotator "NA"]
[PlyCount "108"]
[EventDate "2017.??.??"]
[EventType "swiss"]
[EventCountry "RUS"]
[SourceTitle "playchess.com"]
[Source "ChessBase"]
[SourceQuality "1"]
[TimeControl "40/5400+30:1800+30"]

{[%evp 8,108,53,41,47,38,49,47,58,52,32767,32767,32767,32,36,17,41,43,35,28,38,23,9,7,56,13,33,14,0,-23,0,-78,-93,-130,-143,-129,-144,-148,-143,-261,-245,-267,-306,-267,-272,-276,-288,-294,-347,-349,-359,-309,-383,-316,-184,-179,-206,-165,-164,-184,-174,-205,-165,-166,-187,-170,-188,-142,-147,-205,-161,-246,-158,-167,-133,-132,-344,-140,-413,-160,-153,-354,-553,-481,-590,-568,-36,-100,32767,32767,-273,-218,-237,-12836,-284,-353,-480,32767,32767,-12846,-12847,-12847,-12847]} 1. e4 c5 2. Nf3 d6 3. c4 Nf6 4. Nc3 g6 5. d4 cxd4 6. Nxd4 Bg7 7. Be2 O-O 8. Be3 {LiveBook: 132 Games} Nc6 9. O-O Bd7 10. f4 a6 11. Nb3 Rc8 12. c5 {E79: King's Indian: Four Pawns Attack: 6 Be2 c5 7 Nf3 cxd4 8 Nxd4 Nc6 9 Be3} (12. Rc1 b5 13. c5 b4 14. Nd5 Nxe4 15. cxd6 exd6 16. Bb6 Qh4 17. Rc4 Rfe8 18. Bf3 f5 19. Nc7 Qd8 {0-1 (50) Perez Manas,B (2298)-Garcia,J (2376) Mislata 2011}) 12... Be6 13. cxd6 exd6 14. Nd4 $146 ({Predecessor:} 14. Kh1 Na5 15. Nxa5 Qxa5 16. Bf3 Rfd8 17. Rf2 b5 18. a3 Bc4 19. Rd2 Qc7 {½-½ (28) Szabo,A (2125)-Elo,I (2137) Hungary 2006}) 14... Nxd4 15. Bxd4 Bc4 16. Re1 Bxe2 17. Qxe2 Re8 18. Qf3 b5 (18... Rc4 $5 {[%cal Rc4d4]} 19. Qd3 Qc8 $15) 19. a3 {[#]} (19. Rad1 $11) 19... Rc4 $1 20. Rad1 {[#]} Rxd4 $1 21. Rxd4 Qb6 22. Red1 Nxe4 $1 23. Nxe4 (23. Qe3 $17 Bxd4 24. Qxd4 Qxd4+ 25. Rxd4 Nxc3 26. bxc3) 23... Bxd4+ 24. Kh1 Bxb2 25. h3 Rd8 26. f5 d5 27. fxg6 hxg6 28. Ng5 Bf6 29. Rxd5 Bxg5 30. Rxg5 Qd6 (30... Re8 $142 31. Qc3 Re3) 31. Qg3 Qxg3 32. Rxg3 Kg7 33. Rc3 Rd6 34. Kg1 Rf6 35. g4 Rf4 36. Kg2 Ra4 37. g5 Kf8 38. Re3 Rc4 39. Kg3 Rc6 40. Kf4 Rb6 ({Black should play} 40... a5 $19 41. Rg3 Rc5) 41. Rc3 {[#]} a5 $1 42. Ke4 b4 43. axb4 axb4 44. Rb3 Ke7 45. Kd5 Rb5+ 46. Kc4 Rb7 47. Kd5 Rb5+ 48. Kc4 Rxg5 49. Kxb4 Rd5 50. Kc4 Rd7 51. Rf3 f5 52. h4 Kf6 53. Rg3 Rh7 54. Rh3 f4 $19 0-1